bitfinex/quotes_BTCUSD_20251224
["timestamp","ask_amount","ask_price","bid_price","bid_amount"]
[1766573585642,2.6e-06,87199.0,87189.0,0.01146933]
[1766573585643,0.1218,87194.0,87193.0,0.01148]
[1766573587424,0.1218,87194.0,87193.0,0.010931]
[1766573588166,0.1218,87194.0,87190.0,0.01148]
[1766573588461,0.1218,87194.0,87190.0,0.0229492]
[1766573588668,0.1218,87194.0,87191.0,0.06881441]
[1766573589050,0.121251,87194.0,87192.0,0.05734462]
[1766573589228,0.121251,87194.0,87190.0,0.01148]
[1766573591240,0.121251,87194.0,87191.0,0.01146907]
[1766573591497,0.121251,87194.0,87191.0,0.06881387]
[1766573591882,0.121251,87194.0,87192.0,0.05734446]
[1766573592062,0.121251,87194.0,87191.0,0.01146907]
[1766573593003,0.121251,87194.0,87191.0,0.0688143]
[1766573593303,0.121251,87194.0,87190.0,0.08029517]
[1766573593876,0.121251,87194.0,87190.0,0.08014141]
[1766573594097,0.121251,87194.0,87191.0,0.01148]
[1766573595364,0.121251,87194.0,87191.0,1e-06]
[1766573601128,0.121251,87194.0,87191.0,0.01147007]
[1766573601329,0.121251,87194.0,87191.0,0.06881531]
[1766573602268,0.121251,87194.0,87191.0,0.01148]
[1766573603368,0.121251,87194.0,87191.0,0.02294907]
[1766573604602,0.10950649,87194.0,87191.0,0.08029425]
[1766573606254,0.10950649,87194.0,87192.0,0.05734454]
[1766573606409,0.10950649,87194.0,87191.0,0.08029425]
[1766573606794,0.10950649,87194.0,87191.0,0.01148]
[1766573606995,0.10950649,87194.0,87191.0,0.02294907]
[1766573607197,0.10950649,87194.0,87192.0,0.05734421]
[1766573607603,2.6e-06,87199.0,87193.0,0.01146881]
[1766573607952,2.6e-06,87199.0,87191.0,0.01148]
[1766573608510,2.6e-06,87199.0,87191.0,0.08029427]
[1766573609111,2.6e-06,87199.0,87191.0,0.02294907]
[1766573609307,2.6e-06,87199.0,87194.0,0.01146867]
[1766573609593,2.6e-06,87199.0,87195.0,0.06881123]
[1766573609865,2.6e-06,87199.0,87196.0,0.01146841]
[1766573610832,2.6e-06,87199.0,87195.0,0.01146854]
[1766573611041,2.6e-06,87199.0,87196.0,0.01146841]
[1766573611390,2.6e-06,87199.0,87197.0,0.05734118]
[1766573612085,2.6e-06,87199.0,87198.0,0.05734076]
[1766573612386,2.6e-06,87199.0,87197.0,0.05734118]
[1766573612530,2.6e-06,87199.0,87196.0,0.06881041]
[1766573612960,2.6e-06,87199.0,87197.0,0.05734096]
[1766573613190,2.6e-06,87199.0,87198.0,0.05734076]
[1766573613546,2.6e-06,87199.0,87197.0,0.05734096]
[1766573613776,2.6e-06,87199.0,87196.0,0.0688104]
[1766573614378,2.6e-06,87199.0,87197.0,0.05734115]
[1766573615110,2.6e-06,87199.0,87195.0,0.01146854]
[1766573615284,2.6e-06,87199.0,87194.0,0.06881202]
[1766573615666,2.6e-06,87199.0,87193.0,0.06881171]
[1766573616227,2.6e-06,87199.0,87195.0,0.01146854]
[1766573616415,2.6e-06,87199.0,87194.0,0.06881185]
[1766573616637,2.6e-06,87199.0,87193.0,0.06881278]
[1766573616979,2.6e-06,87199.0,87192.0,0.06881344]
[1766573617210,2.6e-06,87199.0,87191.0,0.01148]
[1766573617710,2.6e-06,87199.0,87191.0,0.02294907]
[1766573618557,2.6e-06,87199.0,87193.0,0.01146881]
[1766573618718,2.6e-06,87199.0,87193.0,0.06881273]
[1766573619422,2.6e-06,87199.0,87195.0,0.01146854]
[1766573619613,2.6e-06,87199.0,87194.0,0.01146867]
[1766573619814,2.6e-06,87199.0,87193.0,0.06881273]
[1766573620010,2.6e-06,87199.0,87192.0,0.06881329]
[1766573620220,2.6e-06,87199.0,87193.0,0.01146881]
[1766573620427,2.6e-06,87199.0,87194.0,0.01146867]
[1766573620631,2.6e-06,87199.0,87195.0,0.06881125]
[1766573620841,2.6e-06,87199.0,87195.0,0.01146854]
[1766573621459,2.6e-06,87199.0,87195.0,0.06881114]
[1766573621663,2.6e-06,87199.0,87196.0,0.06881005]
[1766573621877,2.6e-06,87199.0,87197.0,0.05734093]
[1766573622715,2.6e-06,87199.0,87198.0,0.05734076]
[1766573623728,0.0002,87201.0,87200.0,0.05733944]
[1766573623931,0.0076774,87202.0,87201.0,0.05733879]
[1766573624137,0.0076774,87202.0,87200.0,0.05733944]
[1766573624331,0.0054058,87202.0,87200.0,0.05733944]
[1766573624528,0.07455838,87206.0,87200.0,0.05733944]
[1766573624529,0.07455838,87206.0,87202.0,0.000349]
[1766573624702,0.07455838,87206.0,87200.0,0.06880732]
[1766573624901,0.07491521,87206.0,87200.0,0.06880732]
[1766573625105,0.07491521,87206.0,87198.0,0.06880842]
[1766573625331,0.07491521,87206.0,87199.0,0.01146802]
[1766573626251,0.07491521,87206.0,87203.0,0.01146749]
[1766573626252,0.00321621,87206.0,87203.0,0.01146749]
[1766573626455,0.00321621,87206.0,87203.0,0.0688047]
[1766573627647,0.00321621,87206.0,87203.0,0.01146749]
[1766573628225,0.00321621,87206.0,87202.0,0.06880521]
[1766573628385,0.00237035,87206.0,87203.0,0.01146749]
[1766573628790,0.00237035,87206.0,87203.0,0.06880477]
[1766573629740,0.00237035,87206.0,87203.0,0.06880369]
[1766573629892,0.00237035,87206.0,87203.0,0.06880493]
[1766573630225,2.44e-06,87209.0,87207.0,0.12281]
[1766573630384,2.44e-06,87209.0,87207.0,0.00010676]
[1766573630577,2.44e-06,87209.0,87203.0,0.01146749]
[1766573630578,2.44e-06,87209.0,87206.0,0.0114671]
[1766573630769,2.44e-06,87209.0,87206.0,0.06890937]
[1766573630974,2.44e-06,87209.0,87207.0,0.05733483]
[1766573631381,2.44e-06,87209.0,87206.0,0.06890937]
[1766573632164,2.44e-06,87209.0,87206.0,0.00010686]
[1766573632385,2.44e-06,87209.0,87206.0,0.01157396]
[1766573632760,2.44e-06,87209.0,87206.0,0.0689094]
[1766573633074,2.44e-06,87209.0,87206.0,0.06890941]
[1766573633312,2.44e-06,87209.0,87207.0,0.05733461]
[1766573633738,2.44e-06,87209.0,87206.0,0.06890941]
[1766573634482,2.44e-06,87209.0,87207.0,0.05733477]
[1766573634688,2.44e-06,87209.0,87208.0,0.18014418]
[1766573638194,0.0036913,87213.0,87210.0,0.06879896]
[1766573638402,0.0036913,87213.0,87211.0,0.05733209]
[1766573638607,1.3e-06,87213.0,87212.0,0.05733155]
[1766573639213,0.00466463,87219.0,87218.0,0.05732761]
[1766573639617,0.00466463,87219.0,87216.0,0.01146578]
[1766573639817,0.00466463,87219.0,87217.0,0.05732819]
[1766573640709,0.00466463,87219.0,87218.0,0.05732761]
[1766573640904,4.63e-06,87219.0,87217.0,0.05732819]
[1766573641155,9.42e-06,87220.0,87218.0,0.05732761]
[1766573641360,9.42e-06,87220.0,87219.0,0.12032]
[1766573641922,0.00547027,87230.0,87218.0,0.05732761]
[1766573641923,0.00112549,87236.0,87231.0,0.12032]
[1766573642139,0.00112549,87236.0,87221.0,0.01146512]
[1766573642140,0.03842,87235.0,87221.0,0.01146512]
[1766573642343,0.00055,87221.0,87215.0,0.12863731]
[1766573642543,0.01146394,87230.0,87215.0,0.12863731]
[1766573642544,0.08026509,87229.0,87215.0,0.12863731]
[1766573642751,0.0114642,87228.0,87215.0,0.12863731]
[1766573642944,0.05732196,87227.0,87215.0,0.12863731]
[1766573643216,0.02294407,87229.0,87215.0,0.14010322]
[1766573643429,0.22925631,87239.0,87220.0,0.12032]
[1766573643430,0.01148,87231.0,87220.0,0.12032]
[1766573643643,0.01148,87231.0,87222.0,0.12032]
[1766573644711,0.01146394,87230.0,87222.0,0.12032]
[1766573644899,0.00031446,87223.0,87222.0,0.12032]
[1766573645342,0.08026306,87231.0,87223.0,0.00030954]
[1766573645343,0.01148,87231.0,87223.0,0.00030954]
[1766573645544,0.01146368,87232.0,87223.0,0.00030954]
[1766573645753,0.01146368,87232.0,87222.0,0.12032]
[1766573645925,0.00025151,87231.0,87222.0,0.12032]
[1766573646816,0.06903468,87231.0,87222.0,0.12032]
[1766573647013,0.01171532,87231.0,87222.0,0.12032]
[1766573647827,0.01146394,87230.0,87222.0,0.12032]
[1766573648188,0.01146394,87230.0,87221.0,0.01148]
[1766573648189,0.0114642,87228.0,87221.0,0.01148]
[1766573648424,0.06878524,87228.0,87221.0,0.01148]
[1766573648620,0.06878447,87229.0,87221.0,0.01148]
[1766573649141,0.01146407,87229.0,87221.0,0.01148]
[1766573649365,0.06878375,87230.0,87221.0,0.01148]
[1766573649688,0.01171532,87231.0,87221.0,0.01148]
[1766573649863,0.01146394,87230.0,87219.0,0.01148]
[1766573650052,0.0114642,87228.0,87215.0,0.27190322]
[1766573650253,0.01146407,87229.0,87216.0,0.06879465]
[1766573650458,0.01146394,87230.0,87217.0,0.01146565]
[1766573650632,0.01146407,87229.0,87217.0,0.01146565]
[1766573650836,0.01146407,87229.0,87216.0,0.06879465]
[1766573651040,0.01146407,87229.0,87217.0,0.01146565]
[1766573651284,0.01146407,87229.0,87216.0,0.06879465]
[1766573651595,0.01146407,87229.0,87217.0,0.01146565]
[1766573651804,0.0114642,87228.0,87215.0,0.32923269]
[1766573652007,0.06878377,87230.0,87217.0,0.01146565]
[1766573652245,0.00025151,87231.0,87220.0,0.01146526]
[1766573652373,0.00025151,87231.0,87221.0,0.01146512]
[1766573652575,0.00025151,87231.0,87220.0,0.01146526]
[1766573653328,0.00025151,87231.0,87221.0,0.12032]
[1766573653525,0.01171532,87231.0,87221.0,0.12032]
[1766573654286,0.01146394,87230.0,87221.0,0.12032]
[1766573654467,0.00025151,87231.0,87221.0,0.12032]
[1766573654874,0.00025151,87231.0,87221.0,0.13178512]
[1766573655209,0.00025151,87231.0,87221.0,0.12032]
[1766573655408,0.00025151,87231.0,87221.0,0.13178512]
[1766573655885,0.00025151,87231.0,87221.0,0.12032]
[1766573656791,0.01171532,87231.0,87221.0,0.12032]
[1766573657007,0.06878368,87230.0,87221.0,0.12032]
[1766573658014,0.01146394,87230.0,87215.0,0.12863731]
[1766573658233,0.05732492,87223.0,87211.0,0.01148]
[1766573658457,0.06878805,87225.0,87211.0,0.02294644]
[1766573658458,0.0114646,87225.0,87211.0,0.02294644]
[1766573658650,0.06878852,87224.0,87212.0,0.01146631]
[1766573658851,0.0114646,87225.0,87213.0,0.06879678]
[1766573659053,0.06878857,87224.0,87212.0,0.01146631]
[1766573659211,0.01146486,87223.0,87211.0,0.02294644]
[1766573659412,0.06878762,87225.0,87213.0,0.01146618]
[1766573659652,0.0229446,87225.0,87213.0,0.01146618]
[1766573659885,0.01148,87225.0,87213.0,0.01146618]
[1766573660086,0.01148,87225.0,87216.0,0.01146578]
[1766573660208,0.01148,87225.0,87213.0,0.06879647]
[1766573660403,0.0229446,87225.0,87212.0,0.06879729]
[1766573660661,0.0229446,87225.0,87211.0,0.1318]
[1766573660662,0.01146486,87223.0,87211.0,0.1318]
[1766573660840,0.06878901,87224.0,87212.0,0.01146631]
[1766573660841,0.01146473,87224.0,87212.0,0.01146631]
[1766573661048,0.06878926,87223.0,87211.0,0.1318]
[1766573661243,0.01146499,87222.0,87211.0,0.01148]
[1766573661560,0.01146486,87223.0,87211.0,0.02294644]
[1766573661713,0.06878868,87224.0,87211.0,0.02294644]
[1766573662768,0.01146499,87222.0,87211.0,0.01148]
[1766573662949,0.01146644,87211.0,87198.0,0.12032]
[1766573663146,0.01146696,87207.0,87201.0,0.00011]
[1766573663351,0.06880112,87208.0,87201.0,0.00011]
[1766573663566,0.01146696,87207.0,87201.0,0.00011]
[1766573663987,0.0114667,87209.0,87201.0,0.00011]
[1766573664395,0.01146657,87210.0,87201.0,0.00011]
[1766573664590,0.20891599,87211.0,87201.0,0.00011]
[1766573665013,0.14011731,87211.0,87201.0,0.00011]
[1766573665323,0.01148,87211.0,87202.0,0.01146762]
[1766573665483,0.01146552,87218.0,87202.0,0.01146762]
[1766573665484,0.01146565,87217.0,87211.0,0.000549]
[1766573665680,0.01146578,87216.0,87211.0,0.000549]
[1766573665887,0.01146578,87216.0,87203.0,0.12032]
[1766573665888,0.01146591,87215.0,87203.0,0.12032]
[1766573666091,0.06879823,87212.0,87203.0,0.12032]
[1766573666311,0.01146644,87211.0,87203.0,0.12032]
[1766573667113,0.01146644,87211.0,87201.0,0.01159]
[1766573667517,0.00027334,87206.0,87201.0,0.01159]
[1766573668592,0.00027334,87206.0,87201.0,0.1279]
[1766573672761,3.4e-07,87206.0,87201.0,0.1279]
[1766573673578,3.4e-07,87206.0,87201.0,0.13936775]
[1766573673775,3.4e-07,87206.0,87201.0,0.1279]
[1766573674536,0.01148,87211.0,87201.0,0.13936775]
[1766573674941,0.01148,87211.0,87202.0,0.01146762]
[1766573675346,0.01148,87211.0,87202.0,0.18511558]
[1766573676733,0.01148,87211.0,87203.0,0.11631]
[1766573676946,0.01148,87211.0,87203.0,0.12777749]
[1766573677161,0.011204,87211.0,87203.0,0.12777749]
[1766573677576,0.011204,87211.0,87204.0,0.12777736]
[1766573677994,0.011204,87211.0,87205.0,0.05733616]
[1766573678200,0.011204,87211.0,87205.0,0.17364616]
[1766573678400,0.011204,87211.0,87205.0,0.18511339]
[1766573679114,0.011204,87211.0,87206.0,0.0114671]
[1766573681647,0.011204,87211.0,87205.0,0.11631]
[1766573683284,0.02267044,87211.0,87198.0,0.00010687]
[1766573683486,0.01201623,87205.0,87188.0,0.01146946]
[1766573683693,0.12863731,87215.0,87193.0,0.01146881]
[1766573683694,0.01148,87204.0,87193.0,0.01146881]
[1766573683892,0.02294736,87204.0,87192.0,0.01146894]
[1766573684183,0.01146749,87203.0,87189.0,0.02294933]
[1766573684383,0.000549,87192.0,87188.0,0.00046683]
[1766573684586,0.01146907,87191.0,87181.0,0.12437]
[1766573684802,0.01146907,87191.0,87174.0,0.01147131]
[1766573684803,0.01146907,87191.0,87173.0,0.12437]
[1766573684804,0.01146999,87184.0,87173.0,0.12437]
[1766573685006,0.06882239,87181.0,87173.0,0.12437]
[1766573685152,0.01147065,87179.0,87173.0,0.12437]
[1766573685353,0.01147038,87181.0,87173.0,0.12437]
[1766573685554,0.01147052,87180.0,87173.0,0.123821]
[1766573685758,0.06882245,87181.0,87171.0,0.00011]
[1766573685759,0.01147065,87179.0,87171.0,0.00011]
[1766573685958,0.01147091,87177.0,87171.0,0.00011]
[1766573686171,0.02295091,87177.0,87171.0,0.00011]
[1766573686338,0.01147104,87176.0,87171.0,0.00011]
[1766573686556,0.01147117,87175.0,87171.0,0.00011]
[1766573686767,0.01147131,87174.0,87171.0,0.00011]
[1766573687776,0.01147117,87175.0,87171.0,0.00011]
[1766573688390,0.06882636,87176.0,87171.0,0.00011]
[1766573688548,0.01147117,87175.0,87171.0,0.00011]
[1766573688957,0.01147104,87176.0,87171.0,0.00011]
[1766573689183,0.05735589,87175.0,87171.0,0.00011]
[1766573689390,0.01147131,87174.0,87171.0,0.00011]
[1766573690452,0.0688279,87174.0,87171.0,0.00011]
[1766573691260,0.08030567,87177.0,87171.0,0.00011]
[1766573692057,0.01147104,87176.0,87171.0,0.00011]
[1766573692459,0.08030567,87177.0,87171.0,0.00011]
[1766573692703,0.02295091,87177.0,87171.0,0.00011]
[1766573693125,0.01147104,87176.0,87171.0,0.00011]
[1766573693300,0.01147131,87174.0,87171.0,0.00011]
[1766573693508,0.05735722,87173.0,87171.0,0.00011]
[1766573693821,0.05735786,87172.0,87171.0,0.00011]
[1766573694033,0.05735722,87173.0,87171.0,0.00011]
[1766573694252,0.06882815,87174.0,87171.0,0.00011]
[1766573695789,0.06882706,87175.0,87171.0,0.00011]
[1766573696236,0.01147131,87174.0,87171.0,0.00011]
[1766573696445,0.06882816,87174.0,87171.0,0.00011]
[1766573696578,0.01147196,87169.0,87163.0,0.01148]
[1766573696778,0.01147223,87167.0,87163.0,0.01148]
[1766573697015,0.05736053,87168.0,87163.0,0.01148]
[1766573697016,0.06883262,87168.0,87163.0,0.01148]
[1766573697371,0.01147223,87167.0,87158.0,0.12437]
[1766573698033,0.08031222,87169.0,87158.0,0.12437]
[1766573698217,0.01148,87169.0,87158.0,0.12437]
[1766573698621,0.06884048,87169.0,87158.0,0.12437]
[1766573698774,0.01147223,87167.0,87158.0,0.12437]
[1766573700447,0.01147223,87167.0,87151.0,0.11661]
[1766573700448,0.01147288,87162.0,87151.0,0.11661]
[1766573700648,0.01147302,87161.0,87152.0,0.01148]
[1766573700802,0.01147302,87161.0,87151.0,0.11661]
[1766573700984,0.06883823,87161.0,87151.0,0.12809]
[1766573701190,0.01147302,87161.0,87151.0,0.12809]
[1766573701429,0.06883944,87160.0,87151.0,0.12809]
[1766573701632,0.01147315,87160.0,87151.0,0.12819691]
[1766573702187,0.068839,87160.0,87151.0,0.12819691]
[1766573702340,0.01147328,87159.0,87151.0,0.12819691]
[1766573702743,0.01147315,87160.0,87151.0,0.12819691]
[1766573703834,0.06883813,87161.0,87151.0,0.12819691]
[1766573704035,0.05736461,87162.0,87151.0,0.12819691]
[1766573704239,0.05736444,87162.0,87161.0,0.000549]
[1766573704679,0.01147288,87162.0,87151.0,0.12819691]
[1766573704879,0.08031659,87163.0,87151.0,0.13967124]
[1766573705091,0.01147288,87162.0,87151.0,0.12819691]
[1766573705401,0.01148,87163.0,87151.0,0.13967124]
[1766573705728,0.08031655,87163.0,87151.0,0.13967124]
[1766573705903,0.08031655,87163.0,87151.0,0.12819691]
[1766573706207,0.08031655,87163.0,87151.0,0.13967124]
[1766573707907,0.06883817,87161.0,87151.0,0.12819691]
[1766573708120,0.01147315,87160.0,87151.0,0.12819691]
[1766573708325,0.01147328,87159.0,87151.0,0.12819691]
[1766573708565,0.01147328,87159.0,87151.0,0.00010691]
[1766573708685,0.06884454,87153.0,87145.0,0.01148]
[1766573708939,0.01147407,87153.0,87145.0,0.01158699]
[1766573709150,0.06884454,87153.0,87145.0,0.01158699]
[1766573709557,0.05736896,87156.0,87145.0,0.01158699]
[1766573709829,0.01147381,87155.0,87145.0,0.01158699]
[1766573710029,0.01147367,87156.0,87145.0,0.01158699]
[1766573710245,0.02476341,87158.0,87146.0,0.01148]
[1766573710456,0.08213051,87158.0,87146.0,0.02295499]
[1766573710602,0.01147381,87155.0,87146.0,0.01148]
[1766573711429,0.01147394,87154.0,87146.0,0.01148]
[1766573711974,0.01147381,87155.0,87146.0,0.01148]
[1766573712521,0.0688426,87156.0,87146.0,0.01148]
[1766573713492,0.01147381,87155.0,87146.0,0.01148]
[1766573714290,0.01147367,87156.0,87146.0,0.01148]
[1766573714694,0.06884259,87157.0,87146.0,0.01148]
[1766573715040,0.06884259,87157.0,87146.0,0.02295499]
[1766573715537,0.01147354,87157.0,87146.0,0.02295499]
[1766573715968,0.08213062,87158.0,87146.0,0.02295499]
[1766573716167,0.08213062,87158.0,87142.0,0.01147552]
[1766573716168,0.0114742,87152.0,87141.0,0.00011]
[1766573716328,0.02295433,87151.0,87141.0,0.00021707]
[1766573716744,0.01147446,87150.0,87141.0,0.00021707]
[1766573716947,0.0114746,87149.0,87141.0,0.00021707]
[1766573717147,0.01147473,87148.0,87141.0,0.00021707]
[1766573717349,0.01147486,87147.0,87141.0,0.00021707]
[1766573717555,0.06884875,87148.0,87141.0,0.00021707]
[1766573717902,0.01147486,87147.0,87132.0,0.11661]
[1766573718102,0.01147525,87144.0,87133.0,0.01148]
[1766573718301,0.05737701,87143.0,87133.0,0.01148]
[1766573718531,0.01147525,87144.0,87133.0,0.0229567]
[1766573718737,0.01147512,87145.0,87133.0,0.0229567]
[1766573719375,0.05737445,87147.0,87135.0,0.01147644]
[1766573719585,0.05737452,87147.0,87145.0,0.000549]
[1766573719787,0.01147499,87146.0,87135.0,0.12808644]
[1766573719989,0.05737452,87147.0,87135.0,0.12808644]
[1766573720195,0.01148,87146.0,87135.0,0.12808644]
[1766573720437,0.01148,87146.0,87135.0,0.11661]
[1766573720605,0.01148,87146.0,87135.0,0.12808644]
[1766573721559,0.01148,87146.0,87136.0,0.11661]
[1766573721985,0.010931,87146.0,87138.0,0.11661]
[1766573727924,0.010931,87146.0,87138.0,0.12808604]
[1766573728129,0.010931,87146.0,87138.0,0.11661]
[1766573728346,1e-06,87146.0,87140.0,0.12455]
[1766573728623,1e-06,87146.0,87141.0,0.12455]
[1766573731220,1e-06,87146.0,87141.0,0.13602565]
[1766573731979,0.08270713,87188.0,87141.0,0.13602565]
[1766573732183,0.02295315,87160.0,87153.0,0.12455]
[1766573732494,0.01148,87160.0,87153.0,0.12455]
[1766573733089,0.02295315,87160.0,87153.0,0.12455]
[1766573733297,0.01148,87160.0,87153.0,0.12455]
[1766573733709,0.01148,87159.0,87153.0,0.12455]
[1766573734399,0.00386124,87159.0,87156.0,0.12455]
[1766573734563,4.218e-05,87159.0,87156.0,0.19339169]
[1766573735132,0.01159,87161.0,87159.0,0.00050782]
[1766573735588,0.01148,87163.0,87158.0,0.12455]
[1766573737368,0.02476541,87169.0,87159.0,0.11666]
[1766573737550,0.240895,87175.0,87163.0,0.000508]
[1766573737551,0.01148,87168.0,87163.0,0.000508]
[1766573737757,0.01148,87167.0,87160.0,0.12813315]
[1766573737958,0.01148,87167.0,87161.0,0.116619]
[1766573738207,0.01148,87167.0,87161.0,0.116069]
[1766573738574,0.01148,87167.0,87161.0,0.12754202]
[1766573738777,0.01148,87167.0,87162.0,0.12813288]
[1766573738998,0.01148,87169.0,87167.0,0.000549]
[1766573739611,0.01148,87169.0,87166.0,0.01147236]
[1766573739801,0.06882024,87184.0,87170.0,0.01147183]
[1766573740030,0.06882161,87182.0,87170.0,0.11666]
[1766573740278,0.01147025,87182.0,87170.0,0.11666]
[1766573740522,0.01147038,87181.0,87171.0,0.11723227]
[1766573740769,4.094e-05,87182.0,87171.0,0.12870397]
[1766573740997,4.094e-05,87182.0,87175.0,0.11666]
[1766573741200,0.01148,87181.0,87175.0,0.11666]
[1766573741405,0.01148,87181.0,87175.0,0.12813117]
[1766573741828,0.01148,87181.0,87176.0,0.01147104]
[1766573742244,4.094e-05,87182.0,87181.0,0.001099]
[1766573742658,4.094e-05,87182.0,87179.0,0.1974609]
[1766573743065,4.094e-05,87182.0,87179.0,0.19746117]
[1766573743296,9.4e-07,87182.0,87179.0,0.31412078]
[1766573743488,9.4e-07,87182.0,87181.0,0.17401194]
[1766573744734,9.4e-07,87182.0,87181.0,0.18549194]
[1766573750055,9.4e-07,87182.0,87181.0,0.1281]
[1766573755062,9.4e-07,87182.0,87180.0,0.12863731]
[1766573755302,9.4e-07,87182.0,87174.0,0.11666]
[1766573755303,9.4e-07,87182.0,87176.0,0.01148]
[1766573760456,0.01147119,87182.0,87176.0,0.01148]
[1766573760815,9.4e-07,87182.0,87176.0,0.01148]
[1766573761220,0.01147038,87181.0,87176.0,0.01148]
[1766573761418,0.05735247,87182.0,87176.0,0.01148]
[1766573761419,0.06882272,87182.0,87176.0,0.01148]
[1766573762558,0.06882272,87182.0,87169.0,0.06883172]
[1766573762559,0.06882589,87177.0,87167.0,0.12347]
[1766573762688,0.06882455,87179.0,87171.0,0.01148]
[1766573763030,0.05735203,87181.0,87171.0,0.01148]
[1766573763237,0.06882304,87182.0,87171.0,0.01148]
[1766573763908,0.01147038,87181.0,87171.0,0.13495]
[1766573764112,9.4e-07,87182.0,87171.0,0.2037801]
[1766573764318,9.4e-07,87182.0,87181.0,0.000549]
[1766573764526,9.4e-07,87182.0,87172.0,0.12347]
[1766573766414,0.01147119,87182.0,87172.0,0.12347]
[1766573767480,9.4e-07,87182.0,87172.0,0.12347]
[1766573767660,9.4e-07,87182.0,87172.0,0.13494157]
[1766573767814,9.4e-07,87182.0,87172.0,0.12347]
[1766573768429,0.01147119,87182.0,87172.0,0.12347]
[1766573769232,0.01146973,87186.0,87182.0,0.00054806]
[1766573769394,0.06881854,87186.0,87182.0,0.00054806]
[1766573769599,0.06881854,87186.0,87174.0,0.13494131]
[1766573769823,0.06881854,87186.0,87174.0,0.12347]
[1766573770033,0.01146986,87185.0,87174.0,0.12347]
[1766573770238,0.01147038,87181.0,87174.0,0.12347]
[1766573770618,0.01147065,87179.0,87174.0,0.12347]
[1766573770821,0.0573526,87180.0,87171.0,0.01148]
[1766573770822,0.06882312,87180.0,87171.0,0.01148]
[1766573771175,0.01146973,87186.0,87171.0,0.01152094]
[1766573771429,0.01147012,87183.0,87172.0,0.01147157]
[1766573771684,0.01147025,87182.0,87171.0,0.13499094]
[1766573771900,0.0688225,87181.0,87171.0,0.13499094]
[1766573773672,0.01147091,87177.0,87171.0,0.13499094]
[1766573773921,0.01147117,87175.0,87171.0,9.4e-07]
[1766573774156,0.0688283,87174.0,87171.0,9.4e-07]
[1766573774390,0.01147117,87175.0,87171.0,9.4e-07]
[1766573774601,0.01147131,87174.0,87171.0,9.4e-07]
[1766573774821,0.01147117,87175.0,87171.0,9.4e-07]
[1766573775059,0.01147104,87176.0,87171.0,9.4e-07]
[1766573775464,0.01147117,87175.0,87171.0,9.4e-07]
[1766573775672,0.05735727,87173.0,87169.0,9.4e-07]
[1766573775874,0.05735727,87173.0,87150.0,0.35812427]
[1766573775875,0.01147236,87166.0,87155.0,0.12347]
[1766573776080,0.01147288,87162.0,87158.0,0.01148]
[1766573776273,0.01147275,87163.0,87158.0,0.01148]
[1766573776662,0.06883697,87163.0,87158.0,0.01148]
[1766573776823,0.01147275,87163.0,87158.0,0.01148]
[1766573777021,0.06883656,87163.0,87158.0,0.01148]
[1766573777261,0.01147288,87162.0,87158.0,0.01148]
[1766573777461,0.01147302,87161.0,87158.0,0.01148]
[1766573777665,0.01147288,87162.0,87158.0,0.01148]
[1766573777864,0.01147288,87162.0,87149.0,0.0114746]
[1766573777865,0.10338392,87217.0,87149.0,0.0114746]
[1766573777866,0.22944796,87166.0,87152.0,0.01148]
[1766573778050,0.01147328,87159.0,87152.0,0.01152094]
[1766573778246,0.06883983,87159.0,87152.0,0.01152094]
[1766573778486,0.06883934,87160.0,87152.0,0.01152094]
[1766573778692,0.01147302,87161.0,87152.0,0.01152094]
[1766573778865,0.01147315,87160.0,87152.0,0.01152094]
[1766573779066,0.06883835,87161.0,87152.0,0.01152094]
[1766573780595,0.01147315,87160.0,87152.0,0.01152094]
[1766573781220,0.06883835,87161.0,87152.0,0.01152094]
[1766573782520,0.01147315,87160.0,87152.0,0.01152094]
[1766573782921,0.01147328,87159.0,87152.0,0.01152094]
[1766573783125,0.01147341,87158.0,87152.0,0.01152094]
[1766573783923,0.0688391,87160.0,87152.0,0.01152094]
[1766573784330,0.01147302,87161.0,87152.0,0.01152094]
[1766573785629,0.06884502,87162.0,87152.0,0.01152094]
[1766573785788,0.01148,87162.0,87152.0,0.02299514]
[1766573786463,0.01148,87162.0,87153.0,0.01147407]
[1766573786812,0.01148,87162.0,87152.0,0.08036605]
[1766573787015,0.01148,87162.0,87152.0,0.01152094]
[1766573788190,0.02295288,87162.0,87152.0,0.01152094]
[1766573789753,0.01148,87162.0,87152.0,0.01152094]
[1766573790719,0.01148,87162.0,87152.0,0.02299514]
[1766573791119,0.01148,87162.0,87152.0,0.01152094]
[1766573791739,0.02295288,87162.0,87152.0,0.01152094]
[1766573792062,0.01147381,87155.0,87152.0,9.4e-07]
[1766573792257,0.05737037,87153.0,87152.0,9.4e-07]
[1766573793028,0.06884459,87153.0,87142.0,0.13243]
[1766573793149,0.06884523,87152.0,87142.0,0.13243]
[1766573793348,0.01147433,87151.0,87142.0,0.13243]
[1766573794403,0.06884523,87152.0,87142.0,0.13243]
[1766573796608,0.06884444,87153.0,87152.0,0.000548]
[1766573796811,0.01147433,87151.0,87142.0,0.13243]
[1766573799411,0.06884621,87151.0,87142.0,0.13243]
[1766573799571,0.01147446,87150.0,87142.0,0.13243]
[1766573799774,0.01147486,87147.0,87142.0,0.13243]
[1766573800005,0.01147512,87145.0,87142.0,0.01148]
[1766573800202,0.01147539,87143.0,87135.0,0.01148]
[1766573800420,0.01147552,87142.0,87135.0,0.01148]
[1766573800642,0.0688526,87143.0,87135.0,0.01148]
[1766573800968,0.01147539,87143.0,87135.0,0.01148]
[1766573801194,0.01147552,87142.0,87135.0,0.13113]
[1766573801589,0.01147539,87143.0,87135.0,0.13113]
[1766573801875,0.06885236,87143.0,87135.0,0.13113]
[1766573802376,0.01147552,87142.0,87135.0,0.13113]
[1766573802612,0.01147591,87139.0,87135.0,0.13113]
[1766573802811,0.01147578,87140.0,87135.0,0.01148]
[1766573803018,0.01147565,87141.0,87135.0,0.01148]
[1766573804699,0.06885328,87142.0,87135.0,0.01148]
[1766573805326,0.01147565,87141.0,87135.0,0.01148]
[1766573807316,0.01147578,87140.0,87135.0,0.01148]
[1766573807545,0.01147552,87142.0,87141.0,0.000548]
[1766573807905,0.01147552,87142.0,87135.0,0.01148]
[1766573808104,0.01147565,87141.0,87135.0,0.01148]
[1766573808305,0.06885402,87141.0,87135.0,0.01148]
[1766573808505,0.01147565,87141.0,87135.0,0.01148]
[1766573808972,0.06885477,87140.0,87135.0,0.01148]
[1766573809186,0.01147539,87143.0,87126.0,0.11965]
[1766573809187,0.0114771,87130.0,87126.0,0.11965]
[1766573809385,0.06886024,87133.0,87128.0,0.01148]
[1766573809587,0.01147697,87131.0,87128.0,0.01148]
[1766573809786,0.06886083,87133.0,87128.0,0.01148]
[1766573809787,0.0114767,87133.0,87128.0,0.01148]
[1766573810008,0.01147683,87132.0,87128.0,0.01148]
[1766573810204,0.0114767,87133.0,87128.0,0.01148]